Cogmind - Beta 17 @@@ ROGUE MODE // 2026.08.05 @ 22:37:56 Player: Floof Enjoyer Result: Destroyed by RM-VDH(R) with Subdweller Laser Performance ------------- Evolutions (0) 0 Regions Visited (3) 600 Robots Destroyed (9) 45 Value Destroyed (320) 320 Prototype IDs (0) 0 Alien Tech Used (0) 0 Bonus (0) 0 TOTAL SCORE: 965 Bonus ------- None Cogmind --------- Core Integrity 0/250 Matter 269/300 Energy 100/100 System Corruption 0% Temperature Cool (6) Movement Rolling (110) Location -10/Subcaves Parts ------- > --- POWER (1) -------- (None) > --- PROPULSION (2) --- Subdweller Monowheel > --- UTILITY (2) ------ Medium Storage Unit > --- WEAPON (2) ------- Light Assault Rifle Battle Rifle > --- INVENTORY (10) --- Small Laser Light Cannon Peak State ------------ > --- POWER ------------ Ion Engine > --- PROPULSION ------- Compact Wheel Compact Wheel > --- UTILITY ---------- Improved Heat Sink Medium Storage Unit > --- WEAPON ----------- Medium Laser Medium Laser > --- INVENTORY -------- Light Ion Engine Light Assault Rifle [Rating: 9] Favorites ----------- Power Ion Engine Engine Ion Engine Propulsion Compact Wheel Wheel Compact Wheel Utility Medium Storage Unit Device Heat Sink Storage Medium Storage Unit Weapon Light Assault Rifle Energy Gun Medium Laser Ballistic Gun Light Assault Rifle Build | -11 -10 -10 -10 ------- Run | Yrd Mat Min Sub Slots Evolved . | . . . . Power . | . . . . Propulsion . | . . . . Utility . | . . . . Weapon . | . . . . Parts Attached 17 | 6 5 4 2 Power 2 | 1 1 . . Engine 2 | 1 1 . . Core . | . . . . Reactor . | . . . . Propulsion 4 | 2 1 . 1 Treads . | . . . . Leg . | . . . . Wheel 4 | 2 1 . 1 Hover . | . . . . Flight . | . . . . Utility 5 | 1 2 2 . Device 3 | . 1 2 . Storage 2 | 1 1 . . Processor . | . . . . Hackware . | . . . . Protection . | . . . . Artifact . | . . . . Weapon 6 | 2 1 2 1 Energy Gun 2 | 2 . . . Energy Cannon . | . . . . Ballistic Gun 4 | . 1 2 1 Ballistic Cannon . | . . . . Launcher . | . . . . Special Weapon . | . . . . Impact Weapon . | . . . . Slashing Weapon . | . . . . Piercing Weapon . | . . . . Special Melee Weapon . | . . . . Unidentified Prototypes . | . . . . Parts Lost 6 | . 2 2 2 Power 1 | . 1 . . Propulsion 2 | . 1 . 1 Utility 3 | . . 2 1 Weapon . | . . . . Highest Loss Streak 2 | . 2 2 2 To Critical Strikes . | . . . . Average Backups 2 | 1 3 2 2 Power . | . . . . Propulsion . | . . . . Utility . | . . . . Weapon 1 | . 1 1 2 Tool/Special . | . . . . Unused Backups 2 | . . . 2 Power . | . . . . Propulsion . | . . . . Utility . | . . . . Weapon 2 | . . . 2 Tool/Special . | . . . . Average Slot Usage (%) 78 | . 92 70 75 Engine 3 | . 12 . . Wheel 18 | . 26 14 18 Device 12 | . 9 13 14 Storage 14 | . 14 14 14 Energy Gun 7 | . 27 . . Ballistic Gun 20 | . . 27 28 Peak Build Rating 9 | 6 9 7 8 Average Rating 6 | 3 7 5 6 On Entrance 4 | . 6 7 5 Avg Prop Armor Cover (%) . | . . . . Naked Turns . | . . . . Heaviest Build 20 | 14 20 13 14 Greatest Support 36 | 32 32 16 36 Greatest Overweight (x) 1 | . 1 . . Average Overweight (x) . | . . . . Largest Inventory Capacity 10 | 8 10 10 10 Average Capacity 9 | 6 9 10 10 Most Carried 5 | 4 5 3 3 Average Carried 2 | 1 3 2 2 Final Capacity 10 | 8 10 10 10 Final Carried 4 | 2 4 2 2 Class Distribution -------------------- 100% | Mutant Dominant Class ---------------- Mutant | -10/Materials Mutant | -10/Mines Mutant | -10/Subcaves Resources | -11 -10 -10 -10 ----------- Run | Yrd Mat Min Sub Matter Collected 393 | 197 103 70 23 Remotely . | . . . . Salvage Created 414 | . 254 100 60 Parts 19 | . 12 3 4 Haulers Intercepted . | . . . . Recyclers Shooed . | . . . . Parts Field Recycled . | . . . . Retrieved Matter . | . . . . Parts Self-Destructed . | . . . . Prevented . | . . . . Parts Restored . | . . . . Kills | -11 -10 -10 -10 ------- Run | Yrd Mat Min Sub Combat Hostiles Destroyed 8 | . 5 2 1 Guns 8 | . 5 2 1 Classes Destroyed 3 | . 2 . 1 Watcher 1 | . 1 . . Grunt 7 | . 5 2 . Subdweller 1 | . . . 1 Best Kill Streak 3 | . 3 2 1 Combat Bots Only 3 | . 3 2 1 Max Kills in Single Turn 1 | . 1 1 1 Gunslinging . | . . . . Exploded . | . . . . Melee . | . . . . Uniques/NPCs Destroyed . | . . . . Combat | -11 -10 -10 -10 -------- Run | Yrd Mat Min Sub Hostile Shots Fired 84 | . 45 19 20 Missed 18 | . 11 2 5 Hits 66 | . 34 17 15 Projectile 66 | . 34 17 15 Critical Strikes 1 | . . 1 . Damage Taken 930 | . 394 228 308 Core 263 | . 77 55 131 Absorbed by Shields . | . . . . Core Remaining (%) 100 | 100 . . . Volleys Fired 57 | . 30 14 13 Largest 2 | . 2 2 2 Hottest 100 | . 100 40 45 Shots Fired 114 | . 60 28 26 Gun 114 | . 60 28 26 Cannon . | . . . . Launcher . | . . . . Special . | . . . . Kinetic 56 | . 2 28 26 Thermal 58 | . 58 . . Explosive . | . . . . Electromagnetic . | . . . . Robot Hit Streak 6 | . 6 4 4 Robot Miss Streak 5 | . 5 2 2 Penetration Max . | . . . . Secondary Targets 2 | . 2 . . Max Gunslinging Chain 1 | . 1 . . Shots Hit Robots 67 | . 31 18 18 Core Hits 25 | . 13 7 5 Critical Kills . | . . . . Critical Parts Destroyed . | . . . . Critical Strikes 2 | . 2 . . Burn 2 | . 2 . . Melee Attacks . | . . . . Impact . | . . . . Slashing . | . . . . Piercing . | . . . . Sneak Attacks . | . . . . Combat Hostiles . | . . . . Follow-up Attacks . | . . . . Damage Inflicted 636 | . 418 137 81 Guns 636 | . 418 137 81 Cannons . | . . . . Explosions . | . . . . Melee . | . . . . Ramming . | . . . . Kinetic 225 | . 7 137 81 Thermal 411 | . 411 . . Explosive . | . . . . Electromagnetic . | . . . . Impact . | . . . . Slashing . | . . . . Piercing . | . . . . Highest Corruption . | . . . . Average Corruption . | . . . . Corruption Purged . | . . . . Corruption Blocked . | . . . . Overload Shots . | . . . . Overflow Damage . | . . . . Projectiles . | . . . . Explosions . | . . . . Melee . | . . . . Knockbacks . | . . . . Impact . | . . . . Kinetic . | . . . . Secondary . | . . . . Self-Inflicted Damage . | . . . . Shots . | . . . . Rammed . | . . . . Targets Rammed . | . . . . Kicked . | . . . . Crushed . | . . . . Highest Temperature 403 | . 403 4 . Average Temperature 125 | . 138 1 . Received Heat Transfer 411 | . 222 147 42 Siege Activations . | . . . . Martial Activations . | . . . . Shielding Activations . | . . . . Robots Disrupted . | . . . . Combat Hostiles . | . . . . Robots Corrupted . | . . . . Combat Hostiles . | . . . . Parts Fried . | . . . . Impact Corruptions . | . . . . Robots Melted . | . . . . Combat Hostiles . | . . . . Parts Melted 2 | . 2 . . Heat Transferred 1369 | . 1369 . . Parts Sabotaged . | . . . . Parts Stolen . | . . . . Parts Stripped . | . . . . Power Chain Reactions . | . . . . Alert | -11 -10 -10 -10 ------- Run | Yrd Mat Min Sub Maximum Alert Level . | . . . . Low Security (%) 100 | 100 100 100 . Level 1 . | . . . . Level 2 . | . . . . Level 3 . | . . . . Level 4 . | . . . . Level 5 . | . . . . High Security . | . . . . Max Security . | . . . . Peak Influence 60 | . 60 40 . Initial 6 | . . 6 . Average 15 | . 33 6 . Influence Increases 168 | . 118 50 . Destroy 0b10 Robot/C 140 | . 100 40 . Destroy 0b10 Robot/NC 5 | . 5 . . Destroy Leader 22 | . 12 10 . Destroy Structure 1 | . 1 . . Influence Decreases 168 | . 100 68 . Entered New Map 12 | . . 12 . Time Decay 126 | . 80 46 . Lost Part 30 | . 20 10 . Squads Dispatched 1 | . 1 . . Investigation . | . . . . Extermination . | . . . . Reinforcement 1 | . 1 . . Assault . | . . . . Garrison . | . . . . Intercept . | . . . . Searches Triggered . | . . . . Construction Impeded . | . . . . Haulers Reinforced . | . . . . Active Scanning Responses . | . . . . Cargo Convoy Interrupts . | . . . . Stealth | -11 -10 -10 -10 --------- Run | Yrd Mat Min Sub Distress Signals 2 | . 2 . . Communications Jammed . | . . . . Distress Signals . | . . . . Times Spotted 15 | . 10 2 3 Peak Tracking Total 5 | . 5 2 2 Tactical Retreats . | . . . . Traps | -11 -10 -10 -10 ------- Run | Yrd Mat Min Sub Traps Triggered . | . . . . Indirectly . | . . . . Trap Hack Attempts . | . . . . Triggered . | . . . . Disarmed . | . . . . Reprogrammed . | . . . . Reused . | . . . . Traps Extracted . | . . . . Installed . | . . . . Triggered . | . . . . Machines | -11 -10 -10 -10 ---------- Run | Yrd Mat Min Sub Machines Disabled . | . . . . Max in Single Turn . | . . . . Machines Repaired . | . . . . Machines Dismantled . | . . . . Machines Sabotaged . | . . . . Overloaded Fab Kills . | . . . . Hacking | -11 -10 -10 -10 --------- Run | Yrd Mat Min Sub Machines Accessed . | . . . . Terminals . | . . . . Fabricators . | . . . . Repair Stations . | . . . . Recycling Units . | . . . . Scanalyzers . | . . . . Garrison Access . | . . . . Total Hacks . | . . . . Successful . | . . . . Failed . | . . . . Catastrophic . | . . . . Database Lockouts . | . . . . Manual . | . . . . Terminals . | . . . . Fabricators . | . . . . Repair Stations . | . . . . Recycling Units . | . . . . Scanalyzers . | . . . . Garrison Access . | . . . . Terminal Hacks . | . . . . Fabricator Hacks . | . . . . Repair Station Hacks . | . . . . Recycling Unit Hacks . | . . . . Scanalyzer . | . . . . Garrison Access Hacks . | . . . . Unauthorized Hacks . | . . . . Terminals . | . . . . Fabricators . | . . . . Repair Stations . | . . . . Recycling Units . | . . . . Scanalyzers . | . . . . Garrison Access . | . . . . Data Cores Recovered . | . . . . Used . | . . . . Hacking Detections . | . . . . Full Trace Events . | . . . . Feedback Events . | . . . . Feedback Blocked . | . . . . Robot Schematics Acquired . | . . . . Robots Built . | . . . . Authchips . | . . . . Time . | . . . . Total Robot Build Rating . | . . . . Part Schematics Acquired . | . . . . Parts Built . | . . . . Authchips . | . . . . Time . | . . . . Total Part Build Rating . | . . . . Part Studies Acquired . | . . . . Parts Repaired . | . . . . Time . | . . . . Parts Recycled . | . . . . Recycled Matter . | . . . . Retrieved Matter . | . . . . Retrieved Components . | . . . . Parts Scanalyzed . | . . . . Part Schematics Acquired . | . . . . Parts Damaged . | . . . . Bothacking | -11 -10 -10 -10 ------------ Run | Yrd Mat Min Sub Used RIF Installer . | . . . . Robots Hacked . | . . . . Non-combat . | . . . . Combat . | . . . . Robot Hacks Applied . | . . . . Relay Couplers Released . | . . . . Fabnet Peak Effective % . | . . . . Robots Rewired . | . . . . Allies Hacked . | . . . . Hacks Repelled . | . . . . Allies | -11 -10 -10 -10 -------- Run | Yrd Mat Min Sub Total Allies . | . . . . Largest Group . | . . . . Highest-Rated Group . | . . . . Highest-Rated Ally . | . . . . Total Orders . | . . . . Ally Attacks . | . . . . Total Damage . | . . . . Kills . | . . . . Allies Corrupted . | . . . . Allies Melted . | . . . . Intel | -11 -10 -10 -10 ------- Run | Yrd Mat Min Sub Active Infowar (turns) 17 | . . 17 . Structural 17 | . . 17 . Robot Analysis Total . | . . . . Derelict Logs Recovered 3 | . . 2 1 Drone Launches . | . . . . Drone Recoveries . | . . . . Exploration | -11 -10 -10 -10 ------------- Run | Yrd Mat Min Sub Turns Passed 744 | 55 183 265 241 Spaces Moved 546 | 42 85 220 199 Core 1 | 1 . . . Treads . | . . . . Legs . | . . . . Wheels 545 | 41 85 220 199 Hover . | . . . . Flight . | . . . . Fastest Speed 50 | 50 90 100 100 Average Speed 99 | 98 94 100 101 Slowest Speed 115 | 100 115 100 110 Overloaded Moves . | . . . . Propulsion Burnouts . | . . . . Robots Hopped . | . . . . Potential Cave-ins . | . . . . Cave-ins Triggered . | . . . . Exploration Rate (%) 26 | 4 30 49 21 Regions Visited 3 Branch Regions 2 Pre-discovered Areas . | . . . . Known Exits Taken . | . . . . Unknown Exits Taken 3 | 1 1 1 . Scrap Searched 2 | . . 1 1 Spaces Dug . | . . . . Terrain Destroyed . | . . . . Melee . | . . . . Projectile . | . . . . AOE . | . . . . Terrain Rammed . | . . . . Walls Destroyed . | . . . . Machines Disabled . | . . . . Actions | -11 -10 -10 -10 --------- Run | Yrd Mat Min Sub Total 643 | 55 128 243 217 Wait . | . . . . Move 543 | 41 84 219 199 Hop . | . . . . Pick Up 19 | 8 6 3 2 Fast Attach . | . . . . Attach 11 | 6 2 2 1 Detach . | . . . . Swap 6 | . 3 2 1 Drop 7 | . 3 3 1 Fire 57 | . 30 14 13 Melee . | . . . . Ram . | . . . . Kick . | . . . . Crush . | . . . . Escape Stasis . | . . . . Rewire . | . . . . Trap . | . . . . Miscellaneous . | . . . . Route ------- -11/Scrapyard -10/Materials -10/Mines (discovered 2 exits: Mat / [*Sub]) -10/Subcaves History --------- Turn | Location | Event 11 | -11/Scrapyard | Discovered new exit (range 15) 56 | -11/Scrapyard | Entered Materials 199 | -10/Materials | Discovered new exit (range 9) 239 | -10/Materials | Entered Mines 257 | -10/Mines | Learned location of 1 exit from Materials 273 | -10/Mines | Identified exit to Materials 301 | -10/Mines | Build established: Mutant 391 | -10/Mines | Core integrity fell below 50% 494 | -10/Mines | Discovered new exit (range 10) 504 | -10/Mines | Entered Subcaves 507 | -10/Subcaves | Learned Materials interactive machine intel 725 | -10/Subcaves | Core integrity fell below 20% 745 | -10/Subcaves | Destroyed by RM-VDH(R) with Subdweller Laser Last Messages --------------- LOCATION=UNKNOWN AMBIENT_HEAT=-10 GOAL=ESCAPE Acquired derelict log, extracted data. Data stored: Materials interactive machine intel. KN-TA4(R) destroyed. Acquired 8 matter. Acquired Sub. Monowheel. Acquired 10 matter. Searching scrap... Found Battle Rifle. Found Shrapnel Trap. Found 37 Matter. Acquired Battle Rifle. Dropped Lgt. Assault Rifle. Subatomizers dissect the Disposable Heat Sink. Acquired 5 matter. Com. Wheel destroyed. Heat Sink destroyed. Map ----- +----------------------------------------------------+ | ?????????????????????????????????????????????????? | | ?????????????????????????????????????????????????? | | ?????????????????????????????????????????????????? | | ?????????????????????????????????????????????????? | | ?????????????????????????????????????????????????? | | ?????????????????????????????????????????????????? | | ?????????????????????????????????????????????????? | | ?????????????????????????????????????????????????? | | ?????????????????????????????????????????????????? | | ?????????????????????????????????????????????????? | | ?????????????????????????????????????????????????? | | ?####???###??????????????###?????????????????????? | | ## ##??# ##????????????? # #??????????????????? | | #??# ##?????######? ???????????????????? | | #### #?????# ?? ????????????????????? | | ## #????? ??? ????????????????????? | | ##???## #??? ?????????????????????? | | ## ##### ##?# #?????????????????????? | | # ###### ## #?# #?????????????????????? | | ### ##???# ### #?????????????????????? | | ?## ##?## ## ##????????????????????? | | ## #?# #????????????????????? | | ##?# #?????????????????????? | | #??# #?????????????????????? | | # #?#### #?????????????????????? | | # #????## @ ####??????????????????? | | ##?????## ##?????????????????? | | ### ##???????#### #?????????????????? | | ##??##???????????#### #?????????????????? | | #???????????????????# ### #?????????????????? | | ??????????????????## #??# #?????????????????? | | ?????????????????# R #??? ##?????????????????? | | #????????????????#### R#????#??????????????????? | | ##???????????????????# " ??????????????????????? | | #???????????????????# #????????????????????? | | ?????????????????? """ #????????????????????? | | ????????????????? "" #???????????????????? | | ???????????????# """" ## #???????????????????? | | ##???????????????# "" #? #???????????????????? | | ???????????????? "??? ##?? ???????????????????? | | ???????????????" ?????###????#??????????????????? | | ???????????????##????????????????????????????????? | | ?????????????????????????????????????????????????? | | ?????????????????????????????????????????????????? | | ?????????????????????????????????????????????????? | | ?????????????????????????????????????????????????? | | ?????????????????????????????????????????????????? | | ?????????????????????????????????????????????????? | | ?????????????????????????????????????????????????? | | ?????????????????????????????????????????????????? | +----------------------------------------------------+ Best States ------------- Heat Dissipation 39 Energy Generation 10 Energy Capacity 250 Matter Stores 300 Matter Capacity 300 Sight Range 16 Terrain Scan Density 10 Evasion (%) 42 Item Schematics ----------------- None Robot Schematics ------------------ None Fabricated ------------ Nothing Repaired ---------- Nothing Studied --------- None Alien Tech Used ----------------- None Achievements -------------- None Challenges ------------ None Game ------ Seed SiegePowerPropulsion Manual? 0 Play Time 00:07:08 Cumulative 8.9 hours Start 2026.08.05 @ 22:32:15 End 2026.08.05 @ 22:37:56 Sessions 1 Manual Loads 0 Difficulty Rogue Special Mode None Game No. 27 Rogue 27 Adventurer 0 Explorer 0 Win Type - Total 0 Types 0/0/0/0/0/0/0/0/0/0 Lore% 11 Gallery% 16 Achievement% 13 Wizard Run 0 Options --------- Layout 1 ASCII 0 Keyboard 0 Movement Mouse Keybinds 0 Fullscreen 1 Font 24/Smallcaps Map View 50x35 Zoom Use 0% Tactical HUD 0 Map Filters NONE Filters NONE Steam 1 RUN: 320ccb44-1241-43c7-890c-4d9477667554